bitfinex-derivatives/quotes_SOLF0:USTF0_20260218
["timestamp","ask_amount","ask_price","bid_price","bid_amount"]
[1771448920519,3.11881339,81.07,81.037,11.1109]
[1771448921323,34.28860096,81.07,81.037,11.1109]
[1771448921725,31.16978757,81.059,81.009,107.92354659]
[1771448921922,31.16978757,81.059,81.009,30.28354659]
[1771448922128,31.16978757,81.049,81.009,30.28354659]
[1771448923220,31.16978757,81.049,80.983,22.2366]
[1771448923221,3.11881339,81.03,80.987,22.66001608]
[1771448923420,3.11881339,81.03,80.984,30.28354659]
[1771448923620,34.28860096,81.02,80.974,30.28354659]
[1771448924022,77.64,81.029,80.993,41.40044659]
[1771448924225,3.11881339,81.04,80.994,30.28354659]
[1771448925233,3.11881339,81.04,80.995,11.1167]
[1771448925428,3.11881339,81.04,80.996,30.93873938]
[1771448925636,108.80978757,81.046,81.001,30.93873938]
[1771448925842,31.16978757,81.046,81.001,30.93873938]
[1771448926837,31.16978757,81.046,81.006,11.1151]
[1771448931222,31.16978757,81.046,81.001,30.93873938]
[1771448931830,11.1107,81.04,81.001,30.93873938]
[1771448932032,14.22951339,81.04,81.001,30.93873938]
[1771448932732,11.1114,81.034,81.001,30.93873938]
[1771448933939,11.1123,81.028,81.001,30.93873938]
[1771448936138,11.111,81.037,81.001,30.93873938]
[1771448936833,11.111,81.037,81.003,30.93873938]
[1771448937028,3.11881339,81.07,81.021,30.93873938]
[1771448937225,77.64,81.069,81.021,30.93873938]
[1771448937432,77.64,81.069,81.03,34.05755277]
[1771448937937,77.64,81.069,81.03,30.93873938]
[1771448939933,77.64,81.069,81.03,34.05755277]
[1771448940236,32.44323998,81.073,81.03,34.05755277]
[1771448941243,32.44323998,81.073,81.03,30.93873938]
[1771448941432,33.26659831,81.069,81.02,3.11881339]
[1771448941737,33.26659831,81.067,81.02,35.82238374]
[1771448942734,33.26659831,81.067,81.026,11.1125]
[1771448944340,3.11881339,81.06,81.026,11.1125]
[1771448944542,33.26659831,81.065,81.026,11.1125]
[1771448949735,33.26659831,81.065,81.032,11.1116]
[1771448950145,77.64,81.066,81.03,3.11881339]
[1771448950146,77.64,81.066,81.033,32.70357035]
[1771448950735,77.64,81.066,81.034,11.1114]
[1771448951243,11.1067,81.069,81.034,11.1114]
[1771448952642,33.26659831,81.066,81.028,11.1122]
[1771448953547,33.26659831,81.057,81.011,32.70357035]
[1771448953837,78.16,81.062,81.021,32.70357035]
[1771448954047,3.11881339,81.06,81.021,32.70357035]
[1771448954250,78.16,81.059,81.021,32.70357035]
[1771448954838,78.16,81.059,81.025,11.1126]
[1771448956541,33.67816569,81.058,81.025,11.1126]
[1771448956748,78.16,81.059,81.031,42.55064016]
[1771448958751,78.16,81.059,81.037,0.07804854]
[1771448965346,33.67816569,81.049,80.998,31.43884016]
[1771448965552,33.67816569,81.039,80.998,31.43884016]
[1771448966654,33.67816569,81.038,81.003,11.1156]
[1771448967743,33.67816569,81.038,80.998,31.43884016]
[1771448967744,33.67816569,81.009,80.971,31.43884016]
[1771448967953,11.1151,81.008,80.956,31.43884016]
[1771448968153,33.67816569,81.007,80.956,31.43884016]
[1771448968353,33.67816569,81.007,80.958,31.43884016]
[1771448968552,11.49348,81.046,80.957,77.66]
[1771448968553,3.11828431,81.02,80.971,31.43884016]
[1771448968746,33.67816569,81.022,80.981,31.43884016]
[1771448968953,33.67816569,81.022,80.981,109.09884016]
[1771448969157,33.67816569,81.022,80.981,120.21744016]
[1771448969450,33.67816569,81.022,80.981,120.19744016]
[1771448970249,14.23168431,81.02,80.981,31.43884016]
[1771448970553,14.23168431,81.02,80.982,77.66]
[1771448972856,33.67816569,81.019,80.981,109.09884016]
[1771448974161,33.67816569,81.019,80.982,77.66]
[1771448974551,33.67816569,81.019,80.983,11.1184]
[1771448975258,33.67816569,81.019,80.984,77.66]
[1771448975556,11.1112,81.036,80.99,31.43884016]
[1771448975763,11.1112,81.036,80.992,31.43884016]
[1771448976761,11.1112,81.036,80.993,31.43884016]
[1771448978765,33.67816569,81.037,80.993,31.43884016]
[1771448978964,33.67816569,81.037,80.99,3.11828431]
[1771448978965,33.67816569,81.037,80.995,31.43884016]
[1771448979464,33.67816569,81.037,81.001,31.43884016]
[1771448979660,33.67816569,81.049,81.001,31.43884016]
[1771448979865,33.67816569,81.062,81.018,31.43884016]
[1771448980165,33.67816569,81.062,81.019,109.09884016]
[1771448981058,33.67816569,81.062,81.02,31.43884016]
[1771448981466,33.67816569,81.062,81.02,34.55712447]
[1771448981662,0.07818171,81.049,81.023,11.1129]
[1771448982062,0.07818171,81.049,81.024,77.66]
[1771448982468,0.07818171,81.049,81.025,11.1125]
[1771448982768,0.07818171,81.049,81.03,3.11828431]
[1771448983258,33.67816569,81.074,81.036,31.43884016]
[1771448983657,33.67816569,81.089,81.043,31.43884016]
[1771448984464,33.67816569,81.089,81.044,77.66]
[1771448984767,33.67816569,81.089,81.05,11.1091]
[1771448985075,33.76539189,81.079,81.051,77.66]
[1771448985377,33.76539189,81.079,81.044,77.66]
[1771448985675,33.76539189,81.079,81.046,11.1097]
[1771448985872,33.76539189,81.069,81.0,33.90733238]
[1771448986074,33.76539189,81.081,81.04,37.02561669]
[1771448986372,33.76539189,81.081,81.041,77.66]
[1771448986871,33.76539189,81.079,81.034,11.1113]
[1771448987081,33.76539189,81.079,81.035,77.66]
[1771448987377,33.76539189,81.079,81.036,77.66]
[1771448988172,33.76539189,81.076,81.036,77.66]
[1771448988373,36.8836762,81.07,81.033,77.66]
[1771448988572,36.8836762,81.07,81.028,77.66]
[1771448989379,33.76539189,81.068,81.028,77.66]
[1771448989768,33.76539189,81.068,81.029,11.112]
[1771448990372,33.76539189,81.068,81.03,77.66]
[1771448992579,33.76539189,81.066,81.03,77.66]
[1771448994878,33.76539189,81.066,81.04,0.07805445]
[1771448999289,11.1074,81.064,81.04,0.07805445]
[1771449003687,33.76539189,81.066,81.04,0.07805445]
[1771449003895,11.1062,81.072,81.04,0.07805445]
[1771449004187,11.1049,81.082,81.041,32.25445503]
[1771449004385,11.1049,81.082,81.051,32.25445503]
[1771449005095,11.1035,81.092,81.06,3.11828431]
[1771449005296,11.1035,81.092,81.06,35.37273934]
[1771449005487,34.47475059,81.102,81.06,35.37273934]
[1771449006089,34.47475059,81.114,81.071,32.25445503]
[1771449007394,11.1006,81.113,81.08,3.11828431]
[1771449007792,34.47475059,81.112,81.08,3.11828431]
[1771449007994,34.47475059,81.098,81.054,77.66]
[1771449008187,34.47475059,81.089,81.044,32.25445503]
[1771449008591,11.1055,81.077,81.044,32.25445503]
[1771449008788,34.47475059,81.089,81.051,32.25445503]
[1771449010894,34.47475059,81.089,81.052,77.66]
[1771449012899,34.47475059,81.089,81.06,3.11828431]
[1771449013093,34.47475059,81.089,81.061,77.66]
[1771449015795,11.104,81.088,81.061,77.66]
[1771449016905,34.89790017,81.081,81.051,77.66]
[1771449017605,34.89790017,81.069,81.029,77.66]
[1771449018203,34.89790017,81.069,81.024,77.66]
[1771449018907,11.1088,81.054,81.024,77.66]
[1771449019701,11.1078,81.061,81.031,34.23632603]
[1771449020009,11.1078,81.061,81.032,34.23632603]
[1771449022307,34.89790017,81.069,81.032,34.23632603]
[1771449023206,8.97595014,81.09,81.032,34.23632603]
[1771449023207,11.1068,81.068,81.032,34.23632603]
[1771449023414,34.89790017,81.083,81.041,34.23632603]
[1771449023712,34.89790017,81.083,81.043,34.23632603]
[1771449023908,11.1053,81.079,81.05,3.11735941]
[1771449024212,34.89790017,81.099,81.05,37.35368544]
[1771449025707,11.104,81.089,81.05,37.35368544]
[1771449025910,11.104,81.089,81.066,0.07808084]
[1771449029709,34.89790017,81.111,81.071,34.23632603]
[1771449029913,43.89762021,81.119,81.071,34.23632603]
[1771449030219,34.89790017,81.108,81.06,3.11735941]
[1771449030415,34.89790017,81.108,81.059,34.23632603]
[1771449030614,11.1024,81.1,81.059,34.23632603]
[1771449030814,46.00030017,81.1,81.059,34.23632603]
[1771449031210,46.00030017,81.1,81.06,3.11735941]
[1771449031717,11.1033,81.094,81.06,3.11735941]
[1771449033418,34.89790017,81.1,81.06,3.11735941]
[1771449035013,34.89790017,81.1,81.06,37.35368544]
[1771449035214,34.89790017,81.1,81.07,3.11735941]
[1771449036019,34.89790017,81.117,81.07,3.11735941]
[1771449036218,34.89790017,81.115,81.07,3.11735941]
[1771449036421,34.89790017,81.113,81.07,3.11735941]
[1771449036716,11.1019,81.104,81.07,3.11735941]
[1771449037413,11.1019,81.104,81.06,37.35368544]
[1771449038317,11.1019,81.104,81.06,48.46148544]
[1771449038517,11.1019,81.104,81.061,34.23632603]
[1771449039311,11.1019,81.104,81.064,34.23632603]
[1771449040115,34.89790017,81.11,81.064,34.23632603]
[1771449041022,34.89790017,81.108,81.064,34.23632603]
[1771449041815,34.89790017,81.108,81.066,11.107]
[1771449043218,34.89790017,81.104,81.066,11.107]
[1771449043610,34.89790017,81.104,81.07,34.23632603]
[1771449043922,34.89790017,81.104,81.07,37.35368544]
[1771449044122,45.99790017,81.118,81.07,37.35368544]
[1771449044323,45.99790017,81.118,81.081,45.34122603]
[1771449044526,34.89790017,81.109,81.06,37.35368544]
[1771449045224,34.89790017,81.109,81.06,34.23632603]
[1771449045822,32.79946165,81.107,81.067,11.1068]
[1771449049334,32.79946165,81.107,81.06,34.23632603]
[1771449049534,32.79946165,81.107,81.06,37.35368544]
[1771449052337,32.79946165,81.104,81.06,34.23632603]
[1771449053444,32.79946165,81.101,81.06,34.23632603]
[1771449055241,11.1025,81.1,81.06,34.23632603]
[1771449055537,32.79946165,81.101,81.063,32.81748186]
[1771449055730,32.79946165,81.101,81.064,32.81748186]
[1771449056129,32.79946165,81.116,81.071,32.81748186]
[1771449057841,32.79946165,81.132,81.081,33.32373566]
[1771449058138,33.34714661,81.129,81.083,33.32373566]
[1771449059540,8.98125169,81.136,81.091,33.32373566]
[1771449059738,33.34714661,81.14,81.101,33.32373566]
[1771449059949,33.34714661,81.153,81.111,33.32373566]
[1771449060338,8.97701195,81.161,81.12,3.11735941]
[1771449060544,33.34714661,81.164,81.121,33.32373566]
[1771449060742,33.34714661,81.159,81.113,79.44]
[1771449061046,33.34714661,81.149,81.108,33.32373566]
[1771449062041,3.11735941,81.16,81.111,33.32373566]
[1771449062238,33.34714661,81.161,81.121,33.32373566]
[1771449062646,33.34714661,81.173,81.131,33.32373566]
[1771449064145,33.34714661,81.159,81.114,33.32373566]
[1771449064345,36.46450602,81.15,81.115,77.68]
[1771449064546,33.34714661,81.15,81.115,77.68]
[1771449065252,33.34714661,81.15,81.124,0.07772042]
[1771449067145,33.34714661,81.178,81.125,33.32373566]
[1771449067350,33.34714661,81.169,81.125,33.32373566]
[1771449068748,33.34714661,81.169,81.131,33.32373566]
[1771449070153,77.68,81.179,81.131,33.32373566]
[1771449070456,33.34714661,81.181,81.131,33.32373566]
[1771449070656,33.34714661,81.193,81.151,33.32373566]
[1771449071058,3.11735941,81.21,81.16,3.11735941]
[1771449071252,33.34714661,81.209,81.16,3.11735941]
[1771449071655,33.34714661,81.209,81.16,36.44109507]
[1771449073457,33.34714661,81.209,81.171,33.32373566]
[1771449073962,33.34714661,81.209,81.16,3.11735941]
[1771449074559,33.34714661,81.209,81.16,36.44109507]
[1771449077560,33.34714661,81.209,81.111,37.03]
[1771449077561,33.41932168,81.224,81.19,3.11735941]
[1771449077859,33.41932168,81.237,81.19,38.69414093]
[1771449078064,33.41932168,81.259,81.21,3.11735941]
[1771449078255,33.41932168,81.259,81.23,3.11735941]
[1771449078764,33.41932168,81.266,81.23,3.11735941]
[1771449079062,33.41932168,81.266,81.222,35.57678152]
[1771449079863,33.41932168,81.266,81.23,3.1022643]
[1771449081864,114.43932168,81.266,81.23,3.1022643]
[1771449083070,114.43932168,81.266,81.222,35.57678152]
[1771449083257,33.41932168,81.265,81.222,35.57678152]
[1771449086161,81.28,81.285,81.241,35.57678152]
[1771449086366,33.41932168,81.289,81.241,35.57678152]
[1771449086564,33.41932168,81.287,81.241,35.57678152]
[1771449086765,33.41932168,81.285,81.241,35.57678152]
[1771449091568,81.6,81.284,81.241,35.57678152]
[1771449091969,33.41932168,81.297,81.26,3.1022643]
[1771449092170,33.41932168,81.297,81.138,22.66001608]
[1771449092171,33.41932168,81.297,81.25,3.1022643]
[1771449092362,33.41932168,81.289,81.23,3.1022643]
[1771449092566,33.41932168,81.287,81.231,35.57678152]
[1771449093365,33.41932168,81.285,81.231,35.57678152]
[1771449095164,33.41932168,81.269,81.217,35.57678152]
[1771449095371,3.1022643,81.27,81.217,35.57678152]
[1771449095372,33.41932168,81.267,81.217,35.57678152]
[1771449095674,33.41932168,81.267,81.184,77.56]
[1771449095675,33.41932168,81.267,81.23,38.67904582]
[1771449095972,81.78,81.276,81.23,38.67904582]
[1771449096173,33.41932168,81.282,81.23,38.67904582]
[1771449096470,77.54,81.281,81.23,38.67904582]
[1771449097268,110.95932168,81.281,81.23,38.67904582]
[1771449097475,115.25932168,81.281,81.23,38.67904582]
[1771449097865,36.52158598,81.28,81.23,38.67904582]
[1771449098074,2.14123539,81.32,81.23,35.57678152]
[1771449098075,36.52158598,81.27,81.23,35.57678152]
[1771449098275,3.1022643,81.26,81.211,35.57678152]
[1771449098676,3.1022643,81.26,81.215,35.57678152]
[1771449099374,81.9,81.259,81.215,35.57678152]
[1771449099775,33.41932168,81.258,81.215,35.57678152]
[1771449100173,33.41932168,81.258,81.2,3.1022643]
[1771449100174,3.1022643,81.25,81.207,11.0877]
[1771449101375,33.41932168,81.246,81.202,35.57678152]
[1771449101768,33.41932168,81.235,81.191,11.0898]
[1771449101971,33.41932168,81.233,81.191,11.0898]
[1771449102169,33.41932168,81.233,81.185,35.57678152]
[1771449102367,115.51932168,81.233,81.191,35.57678152]
[1771449103376,82.1,81.233,81.195,35.57678152]
[1771449104682,82.1,81.233,81.197,46.66578152]
[1771449104886,82.1,81.233,81.2,38.67904582]
[1771449105285,82.1,81.233,81.201,11.0885]
[1771449106089,11.0831,81.242,81.201,11.0885]
[1771449106280,82.38,81.241,81.201,11.0885]
[1771449106986,32.48853443,81.24,81.201,11.0885]
[1771449107283,35.59079873,81.24,81.201,11.0885]
[1771449110687,35.59079873,81.24,81.202,34.18826309]
[1771449112288,32.48853443,81.239,81.202,34.18826309]
[1771449112494,32.48853443,81.237,81.19,45.27816309]
[1771449112889,32.48853443,81.237,81.191,34.18826309]
[1771449113389,3.1022643,81.23,81.191,34.18826309]
[1771449113790,3.1022643,81.23,81.192,11.0896]
[1771449113993,3.1022643,81.23,81.192,45.27786309]
[1771449115193,3.1022643,81.21,81.172,34.18826309]
[1771449115397,3.1022643,81.2,81.16,34.18826309]
[1771449115595,77.56,81.199,81.16,34.18826309]
[1771449116290,3.1022643,81.2,81.16,34.18826309]
[1771449116291,83.1,81.198,81.16,34.18826309]
[1771449116689,42.4386,81.198,81.16,37.29052739]
[1771449117189,32.48853443,81.209,81.177,11.0917]
[1771449118389,77.56,81.211,81.177,44.68072746]
[1771449119193,3.1022643,81.21,81.177,33.58902746]
[1771449119387,34.50459291,81.21,81.17,11.0927]
[1771449119592,3.1022643,81.2,81.164,33.58902746]
[1771449120805,34.50459291,81.2,81.166,11.0932]
[1771449121704,45.03,81.244,81.165,33.58902746]
[1771449121705,83.44,81.209,81.165,33.58902746]
[1771449121902,31.40232861,81.214,81.165,33.58902746]
[1771449122797,3.1022643,81.2,81.165,33.58902746]
[1771449123697,3.1022643,81.2,81.166,11.0933]
[1771449124903,81.64,81.204,81.173,11.0922]
[1771449126399,81.64,81.204,81.18,11.0913]
[1771449127200,81.64,81.204,81.174,11.0922]
[1771449129399,81.64,81.204,81.179,11.0915]
[1771449131001,84.04,81.208,81.179,11.0915]
[1771449138306,3.1022643,81.21,81.179,11.0915]
[1771449138513,3.1022643,81.21,81.185,11.0906]
[1771449138711,84.62,81.211,81.185,11.0906]
[1771449139411,84.62,81.211,81.178,45.06772289]
[1771449142121,32.74218639,81.21,81.178,45.06772289]
[1771449142317,32.74218639,81.209,81.178,11.0916]
[1771449146916,32.74218639,81.209,81.183,11.091]
[1771449148824,32.74218639,81.209,81.177,11.0918]
[1771449152522,32.74218639,81.209,81.182,11.091]
[1771449162337,32.74218639,81.209,81.176,33.97612289]
[1771449162636,86.5,81.208,81.176,33.97612289]
[1771449163738,86.5,81.208,81.178,11.0916]
[1771449163938,32.74218639,81.207,81.178,11.0916]
[1771449165232,30.98225636,81.204,81.168,11.093]
[1771449165439,30.98225636,81.199,81.168,11.093]
[1771449166043,11.0883,81.203,81.172,32.04494355]
[1771449166232,3.10687342,81.21,81.172,32.04494355]
[1771449166537,86.74,81.202,81.172,32.04494355]
[1771449167842,86.74,81.202,81.174,11.0922]
[1771449171043,87.04,81.202,81.174,11.0922]
[1771449171340,87.04,81.202,81.174,32.04494355]
[1771449171542,30.98225636,81.209,81.174,32.04494355]
[1771449171738,30.98225636,81.207,81.174,32.04494355]
[1771449172640,30.98225636,81.207,81.18,11.0914]
[1771449173440,87.22,81.206,81.18,11.0914]
[1771449174340,30.98225636,81.207,81.18,11.0914]
[1771449175442,11.36595636,81.207,81.186,11.0905]
[1771449177249,11.36595636,81.207,81.174,32.04494355]
[1771449177250,11.36595636,81.207,81.18,11.0914]
[1771449183043,19.4060046,81.245,81.174,32.04494355]
[1771449183252,19.4060046,81.245,81.21,3.10687342]
[1771449183253,9.00133361,81.244,81.21,3.10687342]
[1771449183548,87.8,81.26,81.23,3.10687342]
[1771449184347,11.0787,81.274,81.23,3.10687342]
[1771449184348,87.84,81.263,81.23,3.10687342]
[1771449185054,31.71192856,81.262,81.22,34.56709898]
[1771449185852,31.71192856,81.259,81.207,31.46022556]
[1771449186054,31.71192856,81.257,81.21,3.10687342]
[1771449186454,3.10687342,81.26,81.21,3.10687342]
[1771449186455,31.71192856,81.255,81.21,3.10687342]
[1771449186652,31.71192856,81.255,81.213,11.0869]
[1771449187358,31.71192856,81.255,81.22,14.19277342]
[1771449187658,31.71192856,81.255,81.22,11.0859]
[1771449189961,31.71192856,81.255,81.22,14.19277342]
[1771449192062,31.71192856,81.255,81.221,31.46022556]
[1771449192963,88.36,81.26,81.227,31.46022556]
[1771449193259,31.71192856,81.265,81.227,31.46022556]
[1771449193958,31.71192856,81.278,81.241,11.083]
[1771449194259,120.17192856,81.277,81.24,34.56709898]
[1771449194760,31.71192856,81.277,81.24,34.56709898]
[1771449195056,88.62,81.283,81.25,3.10687342]
[1771449195749,30.21124274,81.279,81.23,3.10687342]
[1771449195953,30.21124274,81.269,81.215,33.27899908]
[1771449196257,30.21124274,81.267,81.215,33.27899908]
[1771449196457,30.21124274,81.261,81.224,11.0854]
[1771449199152,30.21124274,81.259,81.224,11.0854]
[1771449199350,77.56,81.268,81.204,33.27899908]
[1771449199351,30.21124274,81.249,81.204,33.27899908]
[1771449199555,30.21124274,81.248,81.204,33.27899908]
[1771449199759,30.21124274,81.239,81.204,33.27899908]
[1771449200656,30.21124274,81.239,81.205,11.0879]
[1771449204567,11.0844,81.232,81.191,33.27899908]
[1771449204754,30.21124274,81.231,81.191,33.27899908]
[1771449205766,30.21124274,81.231,81.192,11.0897]
[1771449208666,30.21124274,81.229,81.192,11.0897]
[1771449208868,30.21124274,81.219,81.185,11.0907]
[1771449212066,30.21124274,81.244,81.197,33.27899908]
[1771449212658,36.95,81.288,81.155,12.34]
[1771449212659,30.21124274,81.219,81.186,11.0905]
[1771449215369,30.21124274,81.219,81.186,44.36949908]
[1771449216069,30.21124274,81.231,81.191,33.27899908]
[1771449216374,30.21124274,81.231,81.153,22.66001608]
[1771449216375,30.21124274,81.255,81.211,33.27899908]
[1771449217676,30.21124274,81.255,81.217,11.0863]
[1771449224573,30.21124274,81.239,81.207,11.0877]
[1771449233176,30.21124274,81.239,81.212,11.0869]
[1771449235280,30.21124274,81.239,81.206,11.0878]
[1771449238486,30.79206288,81.229,81.181,31.26599067]
[1771449239175,30.79206288,81.229,81.191,31.26599067]
[1771449239573,30.79206288,81.24,81.2,3.10448251]
[1771449240584,30.79206288,81.24,81.204,31.26599067]
[1771449240985,30.79206288,81.24,81.191,31.26599067]
[1771449241683,30.79206288,81.24,81.204,11.0881]
[1771449244591,30.79206288,81.24,81.209,11.0874]
[1771449250098,33.89654539,81.24,81.209,11.0874]
[1771449251194,30.79206288,81.24,81.209,11.0874]
[1771449251499,30.79206288,81.24,81.191,31.26599067]
[1771449252804,30.79206288,81.24,81.205,11.0879]
[1771449253302,30.79206288,81.24,81.204,31.26599067]
[1771449254797,30.79206288,81.24,81.21,31.26599067]
[1771449254998,30.79206288,81.246,81.21,31.26599067]
[1771449256806,30.79206288,81.246,81.212,11.0869]
[1771449256997,30.79206288,81.246,81.21,31.26599067]
[1771449258698,30.79206288,81.246,81.21,34.37047318]
[1771449264004,31.93466295,81.239,81.17,32.96331579]
[1771449264203,31.93466295,81.239,81.181,32.96331579]
[1771449264908,31.93466295,81.239,81.19,3.10434294]
[1771449265105,31.93466295,81.239,81.198,11.0889]
[1771449268012,31.93466295,81.239,81.205,32.96331579]
[1771449268211,31.93466295,81.248,81.205,32.96331579]
[1771449268510,31.93466295,81.248,81.206,11.0878]
[1771449269309,31.93466295,81.248,81.207,32.96331579]
[1771449269705,31.93466295,81.244,81.207,32.96331579]
[1771449270712,31.93466295,81.242,81.207,32.96331579]
[1771449271211,11.0831,81.241,81.207,32.96331579]
[1771449271402,43.01776295,81.241,81.207,32.96331579]
[1771449273408,31.93466295,81.24,81.207,32.96331579]
[1771449276410,31.93466295,81.24,81.209,11.0874]
[1771449280622,31.93466295,81.238,81.19,36.06765873]
[1771449280917,11.51018199,81.266,81.19,36.06765873]
[1771449280918,31.93466295,81.229,81.19,32.96331579]
[1771449281726,31.93466295,81.227,81.19,44.05331579]
[1771449282113,31.93466295,81.227,81.19,36.06765873]
[1771449282707,31.93466295,81.227,81.197,11.0891]
[1771449283125,31.93466295,81.227,81.19,32.96331579]
[1771449284020,31.93466295,81.227,81.193,32.96331579]
[1771449295326,30.58099926,81.226,81.182,30.80164759]
[1771449295521,30.58099926,81.219,81.182,30.80164759]
[1771449295721,30.58099926,81.219,81.177,11.0917]
[1771449296828,30.58099926,81.216,81.177,11.0917]
[1771449298424,11.0864,81.217,81.177,11.0917]
[1771449298425,30.58099926,81.209,81.177,11.0917]
[1771449299226,30.58099926,81.208,81.172,30.80164759]
[1771449299633,30.58099926,81.199,81.152,189.12387646]
[1771449299833,8.95895752,81.227,81.153,30.80164759]
[1771449299834,30.58099926,81.183,81.153,30.80164759]
[1771449300529,30.58099926,81.183,81.13,3.10434294]
[1771449300732,30.58099926,81.179,81.148,11.0958]
[1771449300925,30.58099926,81.179,81.14,30.80164759]
[1771449301122,36.95,81.218,81.121,30.80164759]
[1771449301123,3.10434294,81.16,81.121,30.80164759]
[1771449301322,3.10434294,81.16,81.128,11.0984]
[1771449301530,33.6853422,81.17,81.128,11.0984]
[1771449302132,30.58099926,81.17,81.138,11.0971]
[1771449302323,30.58099926,81.17,81.139,30.80164759]
[1771449302524,41.67229926,81.181,81.139,30.80164759]
[1771449302934,30.58099926,81.18,81.139,30.80164759]
[1771449303626,30.58099926,81.18,81.13,3.10434294]
[1771449303627,36.95,81.232,81.151,30.80164759]
[1771449303933,3.10434294,81.2,81.151,30.80164759]
[1771449304135,30.58099926,81.205,81.136,77.58]
[1771449304136,30.58099926,81.205,81.163,11.0936]
[1771449304333,30.58099926,81.205,81.164,30.80164759]
[1771449304641,30.58099926,81.205,81.171,30.80164759]
[1771449305736,30.58099926,81.216,81.173,30.80164759]
[1771449306835,30.58099926,81.216,81.174,11.0922]
[1771449308435,30.58099926,81.216,81.174,41.89384759]
[1771449310735,34.04147398,81.21,81.166,11.0932]
[1771449311832,30.93713104,81.208,81.166,11.0932]
[1771449313233,30.93713104,81.199,81.157,11.0945]
[1771449314334,30.93713104,81.199,81.163,11.0937]
[1771449314536,30.93713104,81.199,81.164,30.55802971]
[1771449315733,30.93713104,81.199,81.15,32.51344053]
[1771449316840,29.45423895,81.198,81.15,32.51344053]
[1771449317232,29.45423895,81.198,81.161,29.40909759]
[1771449318830,29.45423895,81.198,81.167,11.0931]
[1771449319236,29.45423895,81.212,81.18,11.0913]
[1771449319542,29.45423895,81.212,81.17,29.40909759]
[1771449320735,29.45423895,81.212,81.174,11.0922]
[1771449320940,29.45423895,81.209,81.174,11.0922]
[1771449322334,3.10434294,81.21,81.168,11.093]
[1771449322335,29.45423895,81.207,81.168,11.093]
[1771449326739,29.45423895,81.205,81.173,11.0923]
[1771449326941,29.45423895,81.219,81.174,29.40909759]
[1771449328647,11.0863,81.218,81.176,11.0919]
[1771449328945,29.45423895,81.217,81.176,11.0919]
[1771449329536,29.45423895,81.217,81.185,11.0907]
[1771449329742,29.45423895,81.228,81.191,29.40909759]
[1771449330639,29.45423895,81.228,81.194,11.0895]
[1771449334854,29.45423895,81.225,81.184,11.0908]
[1771449335447,29.45423895,81.225,81.184,40.49989759]
[1771449336143,11.0865,81.216,81.18,3.10789354]
[1771449336349,29.45423895,81.209,81.174,11.0922]
[1771449336857,3.10789354,81.2,81.164,11.0936]
[1771449337057,11.0879,81.206,81.165,29.40909759]
[1771449338775,11.0879,81.206,81.166,40.50229759]
[1771449339267,11.0879,81.206,81.167,29.40909759]
[1771449340868,11.0879,81.206,81.169,29.40909759]
[1771449342766,11.0869,81.213,81.175,29.40909759]
[1771449343466,29.45423895,81.213,81.161,29.40909759]
[1771449344070,29.45423895,81.212,81.175,11.092]
[1771449345771,29.45423895,81.212,81.175,39.11059135]
[1771449345973,29.45423895,81.212,81.18,11.0913]
[1771449346169,3.10789354,81.22,81.181,28.01859135]
[1771449346368,120.99320423,81.223,81.181,28.01859135]
[1771449347465,120.99320423,81.223,81.19,28.01859135]
[1771449347671,29.67320423,81.237,81.19,28.01859135]
[1771449347872,29.67320423,81.235,81.19,28.01859135]
[1771449348074,29.67320423,81.233,81.19,28.01859135]
[1771449348273,9.01092446,81.232,81.19,28.01859135]
[1771449348467,29.67320423,81.244,81.21,11.0873]
[1771449348669,9.00913443,81.243,81.21,11.0873]
[1771449348864,29.67320423,81.255,81.21,31.12648489]
[1771449349068,29.67320423,81.255,81.22,14.19379354]
[1771449349376,29.67320423,81.266,81.221,28.01859135]
[1771449350374,29.67320423,81.266,81.225,39.10389135]
[1771449351075,29.67320423,81.266,81.225,28.01859135]
[1771449353471,11.0799,81.265,81.225,28.01859135]
[1771449354072,40.75310423,81.265,81.225,28.01859135]
[1771449354576,29.67320423,81.264,81.225,28.01859135]
[1771449356973,11.0797,81.266,81.225,28.01859135]
[1771449357775,91.88,81.274,81.231,28.64354432]
[1771449358777,91.88,81.274,81.232,28.64354432]
[1771449358978,41.5982255,81.273,81.232,28.64354432]
[1771449359281,30.5194255,81.259,81.218,28.64354432]
[1771449359878,30.5194255,81.259,81.207,11.0876]
[1771449359879,30.5194255,81.249,81.205,28.64354432]
[1771449360073,30.5194255,81.239,81.205,28.64354432]
[1771449360275,30.5194255,81.239,81.191,28.64354432]
[1771449360668,30.5194255,81.238,81.192,28.64354432]
[1771449361780,3.10789354,81.23,81.192,28.64354432]